fUST/lending_fUST_20250523
["ID","MTS","AMOUNT","RATE_DAILY","PERIOD"]
[362059251,1747959045905,-430.0,0.00018994,2]
[362059253,1747959045915,-430.0,0.00018994,2]
[362059255,1747959045925,-430.0,0.00018994,2]
[362059257,1747959045935,-430.0,0.00018994,2]
[362059259,1747959045947,-430.0,0.00018994,2]
[362059261,1747959045956,-860.37,0.00018994,2]
[362059263,1747959045967,-430.0,0.00018994,2]
[362059265,1747959045976,-785.47,0.00018994,2]
[362059267,1747959045986,-430.0,0.00018994,2]
[362059269,1747959045997,-820.94,0.00018994,2]
[362059271,1747959046007,-430.0,0.00018994,2]
[362059274,1747959046018,-430.0,0.00018994,2]
[362059275,1747959046027,-937.38,0.00018994,2]
[362059277,1747959046036,-143.76215169,0.00018995,2]
[362059280,1747959046048,-106.23784831,0.00018995,2]
[362059282,1747959046058,-351.3855859,0.00018995,2]
[362059284,1747959046067,-450.0,0.00018995,2]
[362059286,1747959046077,-332.38449032,0.00018995,2]
[362059288,1747959046086,-400.49518034,0.00018995,2]
[362059290,1747959046095,-245.74391925,0.00018995,2]
[362059291,1747959046105,-200.0,0.00018995,2]
[362059294,1747959046114,-401.43858407,0.00018995,2]
[362059296,1747959046124,-450.0,0.00018995,2]
[362059298,1747959046133,-200.97609521,0.00018995,2]
[362059300,1747959046143,-450.0,0.00018995,2]
[362059302,1747959046154,-430.0,0.00018995,2]
[362059304,1747959046167,-490.0,0.00018995,2]
[362059306,1747959046176,-430.0,0.00018995,2]
[362059308,1747959046186,-430.0,0.00018995,2]
[362059310,1747959046195,-430.0,0.00018995,2]
[362059312,1747959046206,-430.0,0.00018995,2]
[362059314,1747959046215,-430.0,0.00018995,2]
[362059316,1747959046225,-430.0,0.00018995,2]
[362059318,1747959046236,-430.0,0.00018995,2]
[362059320,1747959046249,-430.0,0.00018995,2]
[362059322,1747959046259,-430.0,0.00018995,2]
[362059324,1747959046268,-430.0,0.00018995,2]
[362059326,1747959046277,-430.0,0.00018995,2]
[362059328,1747959046287,-430.0,0.00018995,2]
[362059330,1747959046296,-430.0,0.00018995,2]
[362059332,1747959046306,-430.0,0.00018995,2]
[362059334,1747959046315,-430.0,0.00018995,2]
[362059336,1747959046324,-430.0,0.00018995,2]
[362059338,1747959046334,-430.0,0.00018995,2]
[362059340,1747959046343,-430.0,0.00018995,2]
[362059342,1747959046353,-120.08686581,0.00018995,2]
[362059349,1747959046411,-309.91313419,0.00018995,2]
[362059351,1747959046421,-430.0,0.00018995,2]
[362059353,1747959046430,-430.0,0.00018995,2]
[362059355,1747959046439,-400.0,0.00018995,2]
[362059357,1747959046450,-430.0,0.00018995,2]
[362059359,1747959046459,-430.0,0.00018995,2]
[362059361,1747959046469,-1308.8,0.00018995,2]
[362059363,1747959046479,-430.0,0.00018995,2]
[362059365,1747959046488,-599.74,0.00018995,2]
[362059367,1747959046499,-203.20217748,0.00018995,2]
[362059792,1747959589954,-15549.0,0.0001794,2]
[362059793,1747959670501,-4295.0,0.00017761,2]
[362059794,1747959761346,166.571684,0.00013699,2]
[362059820,1747960064275,-4890.0,0.00017721,2]
[362059841,1747960201096,-110.0,0.00017721,2]
[362059842,1747960201121,-84.22370291,0.000179,2]
[362059892,1747960232540,-326.14984423,0.00017721,2]
[362059893,1747960232556,-677.77629709,0.000179,2]
[362059894,1747960232566,-300.0,0.00017926,2]
[362059895,1747960232576,-300.0,0.00017926,2]
[362059896,1747960232587,-300.0,0.00017926,2]
[362059897,1747960232597,-1200.0,0.00017926,2]
[362059898,1747960232607,-300.0,0.00017927,2]
[362059899,1747960232616,-430.0,0.00017927,2]
[362059900,1747960232629,-430.0,0.00017927,2]
[362059901,1747960232638,-430.0,0.00017927,2]
[362059902,1747960232647,-824.52,0.00017927,2]
[362059903,1747960232658,-430.0,0.00017927,2]
[362059904,1747960232667,-381.05038747,0.00017927,2]
[362059905,1747960232677,-786.73,0.00017927,2]
[362059906,1747960232687,-770.66,0.00017927,2]
[362059907,1747960232697,-280.0,0.00017927,2]
[362059908,1747960232707,-24900.0,0.00017928,2]
[362059909,1747960232718,-253.725246,0.00017934,2]
[362059911,1747960232728,-0.9699919,0.0001794,2]
[362059927,1747960232943,-430.0,0.00018201,2]
[362059928,1747960232955,-430.0,0.00018201,2]
[362059929,1747960232965,-824.52,0.00018201,2]
[362059930,1747960232976,-430.0,0.00018201,2]
[362059931,1747960232985,-786.73,0.00018201,2]
[362059932,1747960232995,-770.66,0.00018201,2]
[362059933,1747960233005,-430.0,0.00018475,2]
[362059934,1747960233015,-430.0,0.00018475,2]
[362059935,1747960233025,-824.52,0.00018475,2]
[362059936,1747960233035,-786.73,0.00018475,2]
[362059937,1747960233045,-770.66,0.00018475,2]
[362059938,1747960233055,-430.0,0.00018749,2]
[362059939,1747960233064,-430.0,0.00018749,2]
[362059940,1747960233074,-824.52,0.00018749,2]
[362059941,1747960233084,-786.73,0.00018749,2]
[362059942,1747960233094,-770.66,0.00018749,2]
[362059943,1747960233104,-240.91842803,0.00018837,2]
[362059944,1747960233114,-153.30079674,0.00018885,2]
[362059945,1747960233124,-153.30079669,0.00018887,2]
[362059946,1747960233134,-153.30079669,0.00018889,2]
[362059947,1747960233143,-153.30079669,0.0001889,2]
[362059948,1747960233153,-153.30079669,0.00018892,2]
[362059949,1747960233163,-153.30079669,0.00018894,2]
[362059950,1747960233173,-3938.14,0.00018981,3]
[362059951,1747960233183,-3281.79,0.00018981,3]
[362059952,1747960233193,-1640.89,0.00018981,3]
[362059953,1747960233203,-820.45,0.00018981,3]
[362059954,1747960233213,-410.22,0.00018981,3]
[362059955,1747960233223,-205.11,0.00018981,3]
[362059956,1747960233234,-615.37,0.00018981,3]
[362059957,1747960233244,-500.0,0.00018988,2]
[362059958,1747960233253,-500.0,0.00018988,2]
[362059959,1747960233264,-167.19580282,0.00018988,2]
[362059960,1747960233274,-500.0,0.00018988,2]
[362059961,1747960233284,-500.0,0.00018988,2]
[362059962,1747960233293,-504.43646036,0.00018988,2]
[362059963,1747960233303,-11651.73545737,0.00018989,3]
[362059964,1747960233313,-500.0,0.00018989,2]
[362059965,1747960233323,-593.6765923,0.00018989,2]
[362059966,1747960233332,-198802.87552209,0.00018989,2]
[362059967,1747960233342,-430.0,0.00018991,2]
[362059968,1747960233351,-430.0,0.00018991,2]
[362059969,1747960233361,-430.0,0.00018991,2]
[362059970,1747960233372,-430.0,0.00018991,2]
[362059971,1747960233382,-430.0,0.00018991,2]
[362059972,1747960233392,-430.0,0.00018991,2]
[362059973,1747960233406,-916.24,0.00018991,2]
[362059974,1747960233418,-430.0,0.00018991,2]
[362059975,1747960233428,-559.39,0.00018991,2]
[362059976,1747960233440,-592.67,0.00018991,2]
[362059977,1747960233451,-430.0,0.00018991,2]
[362059978,1747960233462,-430.0,0.00018991,2]
[362059979,1747960233472,-430.0,0.00018991,2]
[362059980,1747960233481,-430.0,0.00018991,2]
[362059981,1747960233491,-430.0,0.00018991,2]
[362059982,1747960233503,-654.72,0.00018991,2]
[362059983,1747960233512,-370.0,0.00018991,2]
[362059984,1747960233521,-430.0,0.00018991,2]
[362059985,1747960233531,-430.0,0.00018991,2]
[362059986,1747960233542,-430.0,0.00018991,2]
[362059987,1747960233554,-430.0,0.00018991,2]
[362059988,1747960233565,-430.0,0.00018991,2]
[362059989,1747960233575,-430.0,0.00018991,2]
[362059990,1747960233586,-430.0,0.00018991,2]
[362059991,1747960233596,-579.79,0.00018991,2]
[362059992,1747960233607,-430.0,0.00018991,2]
[362059993,1747960233616,-430.0,0.00018991,2]
[362059994,1747960233627,-430.0,0.00018991,2]
[362059995,1747960233637,-430.0,0.00018991,2]
[362059996,1747960233647,-1339.74,0.00018991,2]
[362059997,1747960233658,-430.0,0.00018991,2]
[362059998,1747960233668,-430.0,0.00018991,2]
[362059999,1747960233678,-430.0,0.00018991,2]
[362060000,1747960233689,-430.0,0.00018991,2]
[362060001,1747960233699,-314.54559427,0.00018992,3]
[362060002,1747960233709,-212.4501065,0.00018992,3]
[362060003,1747960233719,-430.0,0.00018992,2]
[362060004,1747960233729,-614.25751323,0.00018992,2]
[362060005,1747960233739,-430.0,0.00018992,2]
[362060006,1747960233749,-430.0,0.00018992,2]
[362060007,1747960233759,-450.0,0.00018992,2]
[362060008,1747960233769,-430.0,0.00018992,2]
[362060009,1747960233779,-430.0,0.00018992,2]
[362060010,1747960233789,-430.0,0.00018992,2]
[362060011,1747960233800,-430.0,0.00018992,2]
[362060012,1747960233809,-430.0,0.00018992,2]
[362060013,1747960233819,-430.0,0.00018992,2]
[362060014,1747960233830,-430.0,0.00018992,2]
[362060015,1747960233840,-430.0,0.00018992,2]
[362060016,1747960233849,-430.0,0.00018992,2]
[362060017,1747960233859,-430.0,0.00018992,2]
[362060018,1747960233870,-430.0,0.00018992,2]
[362060019,1747960233880,-430.0,0.00018992,2]
[362060020,1747960233890,-430.0,0.00018992,2]
[362060021,1747960233900,-430.0,0.00018992,2]
[362060022,1747960233911,-201.77,0.00018992,2]
[362060023,1747960233921,-430.0,0.00018992,2]
[362060024,1747960233932,-430.0,0.00018992,2]
[362060025,1747960233943,-430.0,0.00018992,2]
[362060026,1747960233953,-430.0,0.00018992,2]
[362060027,1747960233963,-430.0,0.00018992,2]
[362060028,1747960233973,-430.0,0.00018992,2]
[362060029,1747960233983,-430.0,0.00018992,2]
[362060030,1747960233992,-430.0,0.00018992,2]
[362060031,1747960234002,-430.0,0.00018992,2]
[362060032,1747960234012,-430.0,0.00018992,2]
[362060033,1747960234022,-1202.54,0.00018992,2]
[362060034,1747960234033,-430.0,0.00018992,2]
[362060035,1747960234043,-430.0,0.00018992,2]
[362060036,1747960234052,-430.0,0.00018992,2]
[362060037,1747960234062,-430.0,0.00018992,2]
[362060038,1747960234071,-430.0,0.00018992,2]
[362060039,1747960234081,-454.01,0.00018992,2]
[362060040,1747960234091,-430.0,0.00018992,2]
[362060041,1747960234100,-430.0,0.00018992,2]
[362060042,1747960234111,-430.0,0.00018992,2]
[362060043,1747960234122,-430.0,0.00018992,2]
[362060044,1747960234132,-430.0,0.00018993,2]
[362060045,1747960234142,-430.0,0.00018993,2]
[362060046,1747960234152,-430.0,0.00018993,2]
[362060047,1747960234162,-430.0,0.00018993,2]
[362060048,1747960234172,-430.0,0.00018993,2]
[362060049,1747960234182,-450.58533415,0.00018993,2]
[362060050,1747960234192,-406.39747164,0.00018993,2]
[362060051,1747960234202,-238.62658928,0.00018993,2]
[362060052,1747960234212,-430.0,0.00018993,2]
[362060053,1747960234222,-430.0,0.00018993,2]
[362060054,1747960234231,-430.0,0.00018993,2]
[362060055,1747960234241,-430.0,0.00018993,2]
[362060056,1747960234251,-430.0,0.00018993,2]
[362060057,1747960234261,-430.0,0.00018993,2]
[362060058,1747960234271,-430.0,0.00018993,2]
[362060059,1747960234282,-530.0,0.00018993,2]
[362060060,1747960234291,-430.0,0.00018993,2]
[362060061,1747960234312,-430.0,0.00018993,2]
[362060062,1747960234325,-430.0,0.00018993,2]
[362060063,1747960234336,-430.0,0.00018993,2]
[362060064,1747960234347,-430.0,0.00018993,2]
[362060065,1747960234358,-430.0,0.00018993,2]
[362060066,1747960234368,-430.0,0.00018993,2]
[362060067,1747960234380,-430.0,0.00018993,2]
[362060068,1747960234391,-207.64200324,0.00018993,2]
[362060075,1747960237721,-500.0,0.00018988,2]
[362060076,1747960237731,-500.0,0.00018988,2]
[362060077,1747960237742,-500.0,0.00018988,2]
[362060078,1747960237752,-500.0,0.00018988,2]
[362060079,1747960237763,-500.0,0.00018988,2]
[362060080,1747960237775,-500.0,0.00018988,2]
[362060081,1747960237785,-500.0,0.00018988,2]
[362060082,1747960237796,-222.35799676,0.00018993,2]
[362060083,1747960237805,-430.0,0.00018993,2]
[362060084,1747960237815,-378.51345824,0.00018993,2]
[362060085,1747960237831,-51.48654176,0.00018993,2]
[362060086,1747960237842,-430.0,0.00018993,2]
[362060087,1747960237851,-450.0,0.00018993,2]
[362060089,1747960237861,-430.0,0.00018993,2]
[362060090,1747960237872,-430.0,0.00018993,2]
[362060091,1747960237881,-430.0,0.00018993,2]
[362060092,1747960237891,-430.0,0.00018993,2]
[362060094,1747960237901,-430.0,0.00018993,2]
[362060095,1747960237910,-266.80575883,0.00018993,2]
[362060096,1747960237920,-430.0,0.00018993,2]
[362060097,1747960237930,-334.43236453,0.00018993,2]
[362060098,1747960237939,-430.0,0.00018993,2]
[362060099,1747960237949,-430.0,0.00018993,2]
[362060100,1747960237959,-430.0,0.00018993,2]
[362060101,1747960237968,-430.0,0.00018993,2]
[362060102,1747960237979,-430.0,0.00018993,2]
[362060103,1747960237990,-430.0,0.00018993,2]
[362060104,1747960238001,-500.0,0.00018993,2]
[362060105,1747960238011,-430.0,0.00018993,2]
[362060106,1747960238020,-430.0,0.00018993,2]
[362060107,1747960238029,-430.0,0.00018993,2]
[362060108,1747960238038,-430.0,0.00018993,2]
[362060109,1747960238048,-430.0,0.00018993,2]
[362060110,1747960238059,-430.0,0.00018993,2]
[362060111,1747960238069,-430.0,0.00018993,2]
[362060112,1747960238079,-430.0,0.00018993,2]
[362060113,1747960238088,-430.0,0.00018993,2]
[362060114,1747960238098,-1362.07,0.00018993,2]
[362060115,1747960238107,-430.0,0.00018993,2]
[362060116,1747960238116,-430.0,0.00018993,2]
[362060117,1747960238126,-452.88,0.00018993,2]
[362060118,1747960238135,-430.0,0.00018993,2]
[362060119,1747960238145,-430.0,0.00018993,2]
[362060120,1747960238154,-450.0,0.00018993,2]
[362060121,1747960238163,-430.0,0.00018993,2]
[362060122,1747960238173,-430.0,0.00018994,2]
[362060123,1747960238184,-430.0,0.00018994,2]
[362060124,1747960238193,-430.0,0.00018994,2]
[362060125,1747960238203,-430.0,0.00018994,2]
[362060126,1747960238212,-430.0,0.00018994,2]
[362060127,1747960238222,-430.0,0.00018994,2]
[362060128,1747960238232,-430.0,0.00018994,2]
[362060129,1747960238242,-430.0,0.00018994,2]
[362060130,1747960238252,-430.0,0.00018994,2]
[362060131,1747960238261,-430.0,0.00018994,2]
[362060132,1747960238271,-450.0,0.00018994,2]
[362060133,1747960238280,-450.0,0.00018994,2]
[362060134,1747960238290,-430.0,0.00018994,2]
[362060135,1747960238299,-430.0,0.00019023,2]
[362060136,1747960238308,-430.0,0.00019023,2]
[362060137,1747960238318,-824.52,0.00019023,2]
[362060138,1747960238328,-786.73,0.00019023,2]
[362060139,1747960238338,-770.66,0.00019023,2]
[362060140,1747960238347,-587.10667414,0.00019146,2]
[362060141,1747960238358,-151.0,0.00019178,2]
[362060142,1747960238367,-151.0,0.00019178,2]
[362060143,1747960238379,-151.0,0.00019178,2]
[362060144,1747960238389,-151.0,0.00019178,2]
[362060145,1747960238399,-4502.218361,0.00019178,2]
[362060146,1747960238409,-4502.218361,0.00019178,2]
[362060147,1747960238418,-151.0,0.00019178,2]
[362060148,1747960238428,-151.0,0.00019178,2]
[362060149,1747960238438,-204.975082,0.00019178,2]
[362060150,1747960238448,-151.0,0.00019178,2]
[362060151,1747960238458,-151.083142,0.00019178,2]
[362060152,1747960238467,-183.844296,0.00019178,2]
[362060153,1747960238477,-183.844296,0.00019178,2]
[362060154,1747960238487,-151.0,0.00019178,2]
[362060155,1747960238498,-151.312314,0.00019178,2]
[362060156,1747960238508,-151.0,0.00019178,2]
[362060157,1747960238518,-151.0,0.00019178,2]
[362060158,1747960238529,-151.0,0.00019178,2]
[362060159,1747960238538,-151.0,0.00019178,2]
[362060160,1747960238550,-151.0,0.00019178,2]
[362060161,1747960238560,-619.567782,0.00019178,2]
[362060162,1747960238573,-619.567782,0.00019178,2]
[362060163,1747960238583,-151.0,0.00019178,2]
[362060164,1747960238593,-151.0,0.00019178,2]
[362060165,1747960238604,-177.05,0.00019265,2]
[362060166,1747960238614,-430.0,0.00019265,2]
[362060167,1747960238761,-430.0,0.00019265,2]
[362060168,1747960238771,-430.0,0.00019265,2]
[362060169,1747960238782,-916.24,0.00019265,2]
[362060170,1747960238791,-430.0,0.00019265,2]
[362060171,1747960238802,-559.39,0.00019265,2]
[362060172,1747960238814,-592.67,0.00019265,2]
[362060173,1747960238824,-430.0,0.00019265,2]
[362060174,1747960238834,-430.0,0.00019265,2]
[362060175,1747960238844,-430.0,0.00019265,2]
[362060176,1747960238853,-654.72,0.00019265,2]
[362060177,1747960238863,-430.0,0.00019265,2]
[362060178,1747960238874,-430.0,0.00019265,2]
[362060179,1747960238883,-430.0,0.00019265,2]
[362060180,1747960238893,-430.0,0.00019265,2]
[362060181,1747960238904,-1339.74,0.00019265,2]
[362060182,1747960238914,-430.0,0.00019265,2]
[362060183,1747960238924,-430.0,0.00019265,2]
[362060184,1747960238933,-430.0,0.00019265,2]
[362060185,1747960238943,-430.0,0.00019266,2]
[362060186,1747960238953,-309.91313419,0.00019266,2]
[362060187,1747960238965,-430.0,0.00019266,2]
[362060188,1747960238975,-430.0,0.00019266,2]
[362060189,1747960238985,-430.0,0.00019266,2]
[362060190,1747960238994,-430.0,0.00019266,2]
[362060191,1747960239003,-430.0,0.00019266,2]
[362060192,1747960239013,-430.0,0.00019266,2]
[362060193,1747960239022,-430.0,0.00019266,2]
[362060194,1747960239031,-430.0,0.00019266,2]
[362060195,1747960239040,-430.0,0.00019266,2]
[362060196,1747960239052,-1202.54,0.00019266,2]
[362060197,1747960239062,-430.0,0.00019266,2]
[362060198,1747960239070,-430.0,0.00019266,2]
[362060199,1747960239080,-430.0,0.00019266,2]
[362060200,1747960239089,-430.0,0.00019266,2]
[362060201,1747960239098,-301.71,0.00019266,2]
[362060202,1747960239107,-454.01,0.00019266,2]
[362060203,1747960239117,-430.0,0.00019266,2]
[362060204,1747960239127,-430.0,0.00019267,2]
[362060205,1747960239136,-151.0,0.00019267,2]
[362060206,1747960239146,-185.059376,0.00019267,2]
[362060207,1747960239155,-185.059376,0.00019267,2]
[362060208,1747960239166,-151.0,0.00019267,2]
[362060209,1747960239176,-593.213169,0.00019267,2]
[362060210,1747960239185,-593.213169,0.00019267,2]
[362060211,1747960239194,-151.0,0.00019267,2]
[362060212,1747960239203,-430.0,0.00019267,2]
[362060213,1747960239213,-430.0,0.00019267,2]
[362060214,1747960239222,-430.0,0.00019267,2]
[362060215,1747960239233,-430.0,0.00019267,2]
[362060216,1747960239243,-430.0,0.00019267,2]
[362060217,1747960239253,-430.0,0.00019267,2]
[362060218,1747960239262,-207.45238772,0.00019267,2]
[362060219,1747960239271,-430.0,0.00019267,2]
[362060220,1747960239281,-430.0,0.00019267,2]
[362060221,1747960239291,-430.0,0.00019267,2]
[362060222,1747960239301,-430.0,0.00019267,2]
[362060223,1747960239311,-430.0,0.00019267,2]
[362060224,1747960239320,-400.0,0.00019267,2]
[362060226,1747960239329,-430.0,0.00019267,2]
[362060228,1747960239339,-430.0,0.00019267,2]
[362060230,1747960239349,-462.84438821,0.00019267,2]
[362060232,1747960239359,-430.0,0.00019267,2]
[362060234,1747960239370,-430.0,0.00019267,2]
[362060236,1747960239381,-394.44129098,0.00019267,2]
[362060238,1747960239391,-430.0,0.00019267,2]
[362060240,1747960239400,-430.0,0.00019267,2]
[362060241,1747960239410,-430.0,0.00019267,2]
[362060243,1747960239419,-430.0,0.00019267,2]
[362060245,1747960239429,-500.0,0.00019267,2]
[362060246,1747960239438,-380.48105547,0.00019267,2]
[362060247,1747960239448,-370.0,0.00019267,2]
[362060248,1747960239458,-151.0,0.00019267,2]
[362060249,1747960239468,-430.0,0.00019267,2]
[362060250,1747960239479,-430.0,0.00019267,2]
[362060251,1747960239491,-430.0,0.00019267,2]
[362060253,1747960239506,-430.0,0.00019267,2]
[362060255,1747960239516,-1362.07,0.00019267,2]
[362060256,1747960239527,-430.0,0.00019267,2]
[362060257,1747960239537,-151.0,0.00019267,2]
[362060258,1747960239548,-430.0,0.00019267,2]
[362060259,1747960239561,-269.263006,0.00019267,2]
[362060260,1747960239570,-151.0,0.00019267,2]
[362060261,1747960239581,-430.0,0.00019267,2]
[362060262,1747960239591,-151.0,0.00019268,2]
[362060263,1747960239604,-292.775982,0.00019268,2]
[362060265,1747960239615,-430.0,0.00019268,2]
[362060266,1747960239625,-430.0,0.00019268,2]
[362060268,1747960239637,-430.0,0.00019268,2]
[362060270,1747960239647,-430.0,0.00019268,2]
[362060271,1747960239657,-430.0,0.00019268,2]
[362060272,1747960239668,-450.0,0.00019268,2]
[362060273,1747960239677,-418.08,0.00019268,2]
[362060274,1747960239687,-485.86816544,0.00019268,2]
[362060275,1747960239696,-430.0,0.00019268,2]
[362060276,1747960239706,-222.87423,0.00019268,2]
[362060277,1747960239716,-222.87423,0.00019268,2]
[362060278,1747960239725,-151.0,0.00019268,2]
[362060279,1747960239735,-151.0,0.00019268,2]
[362060280,1747960239744,-151.0,0.00019268,2]
[362060281,1747960239754,-151.0,0.00019268,2]
[362060282,1747960239763,-151.0,0.00019268,2]
[362060283,1747960239773,-247.458967,0.00019269,2]
[362060284,1747960239781,-202.560014,0.00019269,2]
[362060285,1747960239791,-151.0,0.00019269,2]
[362060286,1747960239800,-4502.218361,0.00019269,2]
[362060287,1747960239809,-4502.218361,0.00019269,2]
[362060288,1747960239818,-223.230572,0.00019269,2]
[362060289,1747960239827,-183.844296,0.00019269,2]
[362060290,1747960239837,-183.844296,0.00019269,2]
[362060291,1747960239846,-288.272126,0.00019269,2]
[362060292,1747960239856,-619.567782,0.00019269,2]
[362060293,1747960239865,-619.567782,0.00019269,2]
[362060294,1747960239875,-151.0,0.00019269,2]
[362060295,1747960239884,-430.0,0.00019297,2]
[362060296,1747960239894,-430.0,0.00019297,2]
[362060298,1747960239904,-824.52,0.00019297,2]
[362060299,1747960239913,-786.73,0.00019297,2]
[362060300,1747960239923,-770.66,0.00019297,2]
[362060301,1747960239934,-430.0,0.00019539,2]
[362060302,1747960239944,-473.06018462,0.00019539,2]
[362060303,1747960239954,-916.24,0.00019539,2]
[362060304,1747960239966,-559.39,0.00019539,2]
[362060305,1747960239975,-592.67,0.00019539,2]
[362060306,1747960239985,-430.0,0.00019539,2]
[362060307,1747960239995,-430.0,0.00019539,2]
[362060308,1747960240004,-654.72,0.00019539,2]
[362060309,1747960240015,-430.0,0.00019539,2]
[362060310,1747960240025,-430.0,0.00019539,2]
[362060311,1747960240034,-430.0,0.00019539,2]
[362060312,1747960240044,-430.0,0.00019539,2]
[362060313,1747960240055,-1339.74,0.00019539,2]
[362060314,1747960240065,-465.37,0.00019539,2]
[362060315,1747960240077,-508.9,0.00019539,2]
[362060316,1747960240087,-430.0,0.00019539,2]
[362060317,1747960240097,-430.0,0.0001954,2]
[362060318,1747960240106,-430.0,0.0001954,2]
[362060319,1747960240116,-430.0,0.0001954,2]
[362060320,1747960240125,-430.0,0.0001954,2]
[362060321,1747960240134,-430.0,0.0001954,2]
[362060322,1747960240147,-430.0,0.0001954,2]
[362060323,1747960240157,-430.0,0.0001954,2]
[362060324,1747960240168,-430.0,0.0001954,2]
[362060325,1747960240178,-1202.54,0.0001954,2]
[362060326,1747960240187,-430.0,0.0001954,2]
[362060327,1747960240197,-430.0,0.0001954,2]
[362060328,1747960240206,-430.0,0.0001954,2]
[362060329,1747960240217,-430.0,0.0001954,2]
[362060330,1747960240225,-454.01,0.0001954,2]
[362060331,1747960240235,-430.0,0.0001954,2]
[362060332,1747960240245,-430.0,0.00019541,2]
[362060333,1747960240254,-430.0,0.00019541,2]
[362060334,1747960240263,-430.0,0.00019541,2]
[362060335,1747960240273,-430.0,0.00019541,2]
[362060336,1747960240283,-430.0,0.00019541,2]
[362060337,1747960240292,-298.5,0.00019541,2]
[362060338,1747960240301,-430.0,0.00019541,2]
[362060339,1747960240310,-430.0,0.00019541,2]
[362060340,1747960240319,-430.0,0.00019541,2]
[362060341,1747960240328,-500.0,0.00019541,2]
[362060342,1747960240337,-430.0,0.00019541,2]
[362060343,1747960240346,-430.0,0.00019541,2]
[362060344,1747960240356,-430.0,0.00019541,2]
[362060345,1747960240365,-1362.07,0.00019541,2]
[362060346,1747960240375,-430.0,0.00019541,2]
[362060347,1747960240384,-470.0,0.00019541,2]
[362060348,1747960240393,-151.0,0.00019542,2]
[362060349,1747960240402,-430.0,0.00019542,2]
[362060350,1747960240412,-392.39387789,0.00019542,2]
[362060351,1747960240421,-185.059376,0.00019542,2]
[362060352,1747960240430,-185.059376,0.00019542,2]
[362060353,1747960240439,-151.0,0.00019542,2]
[362060354,1747960240449,-430.0,0.00019542,2]
[362060355,1747960240459,-593.213169,0.00019542,2]
[362060356,1747960240468,-593.213169,0.00019542,2]
[362060357,1747960240477,-151.0,0.00019542,2]
[362060358,1747960240487,-430.0,0.00019542,2]
[362060359,1747960240496,-151.0,0.00019542,2]
[362060360,1747960240505,-151.0,0.00019542,2]
[362060361,1747960240514,-151.0,0.00019542,2]
[362060362,1747960240524,-500.0,0.00019559,2]
[362060363,1747960240533,-420.0,0.00019561,2]
[362060364,1747960240543,-430.0,0.00019571,2]
[362060365,1747960240556,-430.0,0.00019571,2]
[362060366,1747960240565,-824.52,0.00019571,2]
[362060367,1747960240575,-786.73,0.00019571,2]
[362060368,1747960240584,-770.66,0.00019571,2]
[362060369,1747960240595,-500.0,0.00019582,2]